[Event "Early-Titled-Tuesday-Blitz-August-29-2023"]
[Site "Chess.com"]
[Date "2023.08.29"]
[Round "4"]
[White "Tsyhanchuk_Stanislav"]
[Black "CheckThis4"]
[Result "0-1"]
[WhiteElo "2422"]
[BlackElo "2673"]
[TimeControl "180+1"]
[EndTime "8:39:24 PDT"]
[Termination "CheckThis4 won by resignation"]

1. e4 {[%clk 0:03:00.9]} 1... c5 {[%clk 0:02:59.8]} 2. c4 {[%clk 0:03:00.4]}
2... d6 {[%clk 0:02:53.2]} 3. Nc3 {[%clk 0:03:00.7]} 3... Nc6 {[%clk 0:02:47.4]}
4. Nge2 {[%clk 0:03:01.1]} 4... g6 {[%clk 0:02:42.3]} 5. d4 {[%clk 0:02:59]}
5... cxd4 {[%clk 0:02:41.3]} 6. Nxd4 {[%clk 0:02:59.9]} 6... Bg7 {[%clk
0:02:41.9]} 7. Be3 {[%clk 0:03:00.1]} 7... Nf6 {[%clk 0:02:41.4]} 8. Be2 {[%clk
0:03:00]} 8... O-O {[%clk 0:02:38.9]} 9. O-O {[%clk 0:03:00.6]} 9... Bd7 {[%clk
0:02:39.5]} 10. b3 {[%clk 0:02:58.9]} 10... Nxd4 {[%clk 0:02:38.6]} 11. Bxd4
{[%clk 0:02:58.1]} 11... Bc6 {[%clk 0:02:39.2]} 12. f3 {[%clk 0:02:55]} 12... a5
{[%clk 0:02:39.2]} 13. a4 {[%clk 0:02:48.1]} 13... Nd7 {[%clk 0:02:39.1]} 14.
Nd5 {[%clk 0:02:39.1]} 14... Nc5 {[%clk 0:02:29.6]} 15. Rb1 {[%clk 0:02:32.4]}
15... e6 {[%clk 0:02:22.6]} 16. Bxg7 {[%clk 0:02:29.2]} 16... Kxg7 {[%clk
0:02:21]} 17. Qd4+ {[%clk 0:02:29.3]} 17... e5 {[%clk 0:02:12.6]} 18. Qe3 {[%clk
0:02:22.3]} 18... Bxd5 {[%clk 0:02:12.5]} 19. exd5 {[%clk 0:02:17.6]} 19... f5
{[%clk 0:02:01.4]} 20. Bd1 {[%clk 0:02:14.8]} 20... f4 {[%clk 0:01:56.8]} 21.
Qf2 {[%clk 0:02:11.3]} 21... Nd3 {[%clk 0:01:51.7]} 22. Qd2 {[%clk 0:02:10.9]}
22... Qb6+ {[%clk 0:01:51.2]} 23. Kh1 {[%clk 0:02:11.4]} 23... Nc5 {[%clk
0:01:36.2]} 24. Bc2 {[%clk 0:02:11.2]} 24... Rae8 {[%clk 0:01:35]} 25. Qc3
{[%clk 0:02:05.4]} 25... Rf6 {[%clk 0:01:29.6]} 26. Rbe1 {[%clk 0:02:04.5]}
26... Qb4 {[%clk 0:01:28]} 27. Qxb4 {[%clk 0:01:58.1]} 27... axb4 {[%clk
0:01:28.9]} 28. Kg1 {[%clk 0:01:50.4]} 28... Ref8 {[%clk 0:01:26]} 29. Kf2
{[%clk 0:01:47.4]} 29... g5 {[%clk 0:01:26.1]} 30. h3 {[%clk 0:01:46.6]} 30...
h5 {[%clk 0:01:26]} 31. Ke2 {[%clk 0:01:44.3]} 31... Kf7 {[%clk 0:01:22.3]} 32.
Kd2 {[%clk 0:01:39]} 32... Rg8 {[%clk 0:01:20.7]} 33. Rh1 {[%clk 0:01:36.3]}
33... Rh6 {[%clk 0:01:11.3]} 34. Kc1 {[%clk 0:01:30.9]} 34... Rhh8 {[%clk
0:01:11.1]} 35. Kb2 {[%clk 0:01:31.1]} 35... Kf6 {[%clk 0:01:08.6]} 36. Be4
{[%clk 0:00:45.5]} 36... g4 {[%clk 0:01:07.7]} 37. hxg4 {[%clk 0:00:43.6]} 37...
hxg4 {[%clk 0:01:07.7]} 38. Kc2 {[%clk 0:00:36.2]} 38... gxf3 {[%clk 0:00:44.1]}
39. Bxf3 {[%clk 0:00:25.6]} 39... Kf5 {[%clk 0:00:44.3]} 40. Rxh8 {[%clk
0:00:14.1]} 40... Rxh8 {[%clk 0:00:43.7]} 41. Rg1 {[%clk 0:00:13.1]} 41... e4
{[%clk 0:00:41.7]} 42. Bd1 {[%clk 0:00:13.7]} 42... Rh2 {[%clk 0:00:40.2]} 43.
Kd2 {[%clk 0:00:13.2]} 43... Ke5 {[%clk 0:00:35]} 44. Ke1 {[%clk 0:00:11.8]}
44... Kd4 {[%clk 0:00:31.9]} 45. Kd2 {[%clk 0:00:11.1]} 45... f3 {[%clk
0:00:28.1]} 0-1

[Event "Early-Titled-Tuesday-Blitz-August-29-2023"]
[Site "Chess.com"]
[Date "2023.08.29"]
[Round "4"]
[White "AlejandroArias"]
[Black "atalz0"]
[Result "1-0"]
[WhiteElo "2319"]
[BlackElo "2477"]
[TimeControl "180+1"]
[EndTime "8:39:24 PDT"]
[Termination "AlejandroArias won on time"]

1. e4 {[%clk 0:03:00.9]} 1... c6 {[%clk 0:02:59.9]} 2. d4 {[%clk 0:03:00.6]}
2... d5 {[%clk 0:03:00.8]} 3. exd5 {[%clk 0:03:01.2]} 3... cxd5 {[%clk
0:03:01.2]} 4. Bd3 {[%clk 0:03:01.7]} 4... Nc6 {[%clk 0:03:00.4]} 5. c3 {[%clk
0:03:01.8]} 5... Nf6 {[%clk 0:02:59.9]} 6. h3 {[%clk 0:03:02]} 6... g6 {[%clk
0:02:59.1]} 7. Nf3 {[%clk 0:03:01.5]} 7... Bf5 {[%clk 0:02:59.1]} 8. Be2 {[%clk
0:03:01.4]} 8... h5 {[%clk 0:02:56.2]} 9. O-O {[%clk 0:03:00.9]} 9... e6 {[%clk
0:02:55.9]} 10. Bf4 {[%clk 0:02:57.6]} 10... Bd6 {[%clk 0:02:55.4]} 11. Bxd6
{[%clk 0:02:54.9]} 11... Qxd6 {[%clk 0:02:56.3]} 12. Nbd2 {[%clk 0:02:54.2]}
12... Kf8 {[%clk 0:02:52.9]} 13. Re1 {[%clk 0:02:51.5]} 13... Kg7 {[%clk
0:02:53]} 14. Bf1 {[%clk 0:02:31.9]} 14... Qc7 {[%clk 0:02:45.9]} 15. Ne5 {[%clk
0:02:04.3]} 15... h4 {[%clk 0:02:31.4]} 16. Ndf3 {[%clk 0:01:51.9]} 16... Ne4
{[%clk 0:02:19.1]} 17. Nxc6 {[%clk 0:01:42.8]} 17... bxc6 {[%clk 0:02:18.6]} 18.
Nd2 {[%clk 0:01:43.6]} 18... Ng5 {[%clk 0:01:38.9]} 19. Nb3 {[%clk 0:01:31.3]}
19... Qf4 {[%clk 0:01:28]} 20. Qc1 {[%clk 0:01:23.7]} 20... Qxc1 {[%clk
0:01:13.6]} 21. Raxc1 {[%clk 0:01:24.6]} 21... Ne4 {[%clk 0:00:52.8]} 22. Bd3
{[%clk 0:01:21.9]} 22... a5 {[%clk 0:00:47.8]} 23. Bxe4 {[%clk 0:01:21.5]} 23...
Bxe4 {[%clk 0:00:47.2]} 24. Nc5 {[%clk 0:01:21]} 24... a4 {[%clk 0:00:46.8]} 25.
Nxe4 {[%clk 0:01:19]} 25... dxe4 {[%clk 0:00:47.7]} 26. Rxe4 {[%clk 0:01:19.4]}
26... g5 {[%clk 0:00:42.9]} 27. Re5 {[%clk 0:01:17.2]} 27... Kf6 {[%clk
0:00:37.8]} 28. Rc5 {[%clk 0:01:16.6]} 28... Rhb8 {[%clk 0:00:36.4]} 29. Rc2
{[%clk 0:01:13.2]} 29... Rb6 {[%clk 0:00:36]} 30. Rc4 {[%clk 0:01:03.5]} 30...
Rab8 {[%clk 0:00:31.8]} 31. Rxa4 {[%clk 0:00:57.7]} 31... Rxb2 {[%clk
0:00:31.5]} 32. Rxb2 {[%clk 0:00:58.6]} 32... Rxb2 {[%clk 0:00:31.6]} 33. Rc4
{[%clk 0:00:58.7]} 33... Rxa2 {[%clk 0:00:26.1]} 34. Rxc6 {[%clk 0:00:57.1]}
34... Ra1+ {[%clk 0:00:25.7]} 35. Kh2 {[%clk 0:00:57]} 35... Ra2 {[%clk
0:00:19.7]} 36. f3 {[%clk 0:00:54.9]} 36... Rc2 {[%clk 0:00:19.4]} 37. d5 {[%clk
0:00:34.2]} 37... Ke5 {[%clk 0:00:16.1]} 38. dxe6 {[%clk 0:00:33.9]} 38... fxe6
{[%clk 0:00:16.2]} 39. Rc5+ {[%clk 0:00:33.9]} 39... Kf4 {[%clk 0:00:15.8]} 40.
Rc4+ {[%clk 0:00:31.8]} 40... Kf5 {[%clk 0:00:15.8]} 41. Rc8 {[%clk 0:00:26.4]}
41... Kf4 {[%clk 0:00:11.6]} 42. c4 {[%clk 0:00:25.8]} 42... Ke5 {[%clk
0:00:06]} 43. c5 {[%clk 0:00:25.5]} 1-0

[Event "Early-Titled-Tuesday-Blitz-August-29-2023"]
[Site "Chess.com"]
[Date "2023.08.29"]
[Round "4"]
[White "esteban062000"]
[Black "19912131712118"]
[Result "1/2-1/2"]
[WhiteElo "2160"]
[BlackElo "2438"]
[TimeControl "180+1"]
[EndTime "8:39:25 PDT"]
[Termination "Game drawn by repetition"]

1. e4 {[%clk 0:03:00.9]} 1... c5 {[%clk 0:02:59.8]} 2. Nf3 {[%clk 0:03:00.3]}
2... e6 {[%clk 0:03:00.1]} 3. d4 {[%clk 0:02:59.2]} 3... cxd4 {[%clk 0:03:01]}
4. Nxd4 {[%clk 0:02:59.6]} 4... Nc6 {[%clk 0:03:01.5]} 5. c4 {[%clk 0:02:58.5]}
5... Nf6 {[%clk 0:02:59]} 6. Nc3 {[%clk 0:02:58]} 6... Bb4 {[%clk 0:02:59.5]} 7.
Nxc6 {[%clk 0:02:57.3]} 7... bxc6 {[%clk 0:02:57.4]} 8. Bd3 {[%clk 0:02:57.2]}
8... e5 {[%clk 0:02:57.5]} 9. O-O {[%clk 0:02:56.5]} 9... O-O {[%clk 0:02:58.1]}
10. Bg5 {[%clk 0:02:49.3]} 10... h6 {[%clk 0:02:56.5]} 11. Bh4 {[%clk
0:02:45.5]} 11... Be7 {[%clk 0:02:56.2]} 12. Bg3 {[%clk 0:02:37.2]} 12... d6
{[%clk 0:02:55.8]} 13. Qa4 {[%clk 0:02:13.8]} 13... Qb6 {[%clk 0:02:49.3]} 14.
b4 {[%clk 0:02:05.7]} 14... Bd7 {[%clk 0:02:37.5]} 15. Qb3 {[%clk 0:02:02.3]}
15... a5 {[%clk 0:02:27.5]} 16. b5 {[%clk 0:01:58]} 16... cxb5 {[%clk
0:02:24.6]} 17. cxb5 {[%clk 0:01:56.4]} 17... Rfc8 {[%clk 0:02:23.2]} 18. Bc4
{[%clk 0:01:38.2]} 18... Be8 {[%clk 0:02:14.3]} 19. Nd5 {[%clk 0:01:07.9]} 19...
Nxd5 {[%clk 0:02:11]} 20. Bxd5 {[%clk 0:01:08.8]} 20... Rab8 {[%clk 0:02:05.8]}
21. a4 {[%clk 0:01:06.9]} 21... Kh8 {[%clk 0:02:00.8]} 22. Bxf7 {[%clk
0:00:49.5]} 22... Bxf7 {[%clk 0:01:59.4]} 23. Qxf7 {[%clk 0:00:50.4]} 23... Bg5
{[%clk 0:01:59.6]} 24. h4 {[%clk 0:00:40.4]} 24... Bd2 {[%clk 0:01:56.5]} 25.
Rfd1 {[%clk 0:00:37.3]} 25... Rc2 {[%clk 0:01:49.4]} 26. Qd5 {[%clk 0:00:23.5]}
26... Bc3 {[%clk 0:01:23.2]} 27. Rac1 {[%clk 0:00:19.1]} 27... Rxc1 {[%clk
0:01:22.2]} 28. Rxc1 {[%clk 0:00:20]} 28... Rc8 {[%clk 0:01:19.5]} 29. Qe6
{[%clk 0:00:11]} 29... Rc7 {[%clk 0:01:08.8]} 30. Rd1 {[%clk 0:00:08.7]} 30...
Bd4 {[%clk 0:01:06.5]} 31. Qe8+ {[%clk 0:00:05.3]} 31... Kh7 {[%clk 0:01:06]}
32. Qe6 {[%clk 0:00:05.6]} 32... Rc2 {[%clk 0:01:00.5]} 33. h5 {[%clk
0:00:05.2]} 33... Bxf2+ {[%clk 0:00:59.2]} 34. Kh1 {[%clk 0:00:05.5]} 34... Qd8
{[%clk 0:00:25.6]} 35. Qf5+ {[%clk 0:00:05.6]} 35... Kh8 {[%clk 0:00:21.2]} 36.
Bxf2 {[%clk 0:00:06.5]} 36... Re2 {[%clk 0:00:17]} 37. Bb6 {[%clk 0:00:04.6]}
37... Qh4+ {[%clk 0:00:13.5]} 38. Kg1 {[%clk 0:00:02.7]} 38... Qe7 {[%clk
0:00:09.1]} 39. Qc8+ {[%clk 0:00:02.8]} 39... Kh7 {[%clk 0:00:08.7]} 40. Qf5+
{[%clk 0:00:03.5]} 40... Kh8 {[%clk 0:00:09.2]} 41. Qc8+ {[%clk 0:00:04.1]}
41... Kh7 {[%clk 0:00:09.7]} 42. Qf5+ {[%clk 0:00:04.8]} 42... Kh8 {[%clk
0:00:10.2]} 1/2-1/2

[Event "Early-Titled-Tuesday-Blitz-August-29-2023"]
[Site "Chess.com"]
[Date "2023.08.29"]
[Round "4"]
[White "chess123456s"]
[Black "Road2GM3000"]
[Result "0-1"]
[WhiteElo "2634"]
[BlackElo "2435"]
[TimeControl "180+1"]
[EndTime "8:39:27 PDT"]
[Termination "Road2GM3000 won by checkmate"]

1. d4 {[%clk 0:03:00.9]} 1... d5 {[%clk 0:03:00]} 2. Nc3 {[%clk 0:03:01.2]} 2...
Nf6 {[%clk 0:02:59.7]} 3. Bf4 {[%clk 0:03:01.1]} 3... c6 {[%clk 0:02:55.9]} 4.
e3 {[%clk 0:03:01]} 4... Bf5 {[%clk 0:02:55.7]} 5. Nf3 {[%clk 0:03:01.2]} 5...
e6 {[%clk 0:02:53.4]} 6. Ne5 {[%clk 0:03:01.2]} 6... h6 {[%clk 0:02:52.1]} 7.
Bd3 {[%clk 0:02:59.4]} 7... Bxd3 {[%clk 0:02:51]} 8. cxd3 {[%clk 0:03:00.3]}
8... Nbd7 {[%clk 0:02:49.9]} 9. O-O {[%clk 0:02:59.4]} 9... Be7 {[%clk
0:02:49.3]} 10. e4 {[%clk 0:02:52.9]} 10... O-O {[%clk 0:02:47.9]} 11. Nxd7
{[%clk 0:02:51.4]} 11... Nxd7 {[%clk 0:02:44.7]} 12. e5 {[%clk 0:02:50]} 12...
Bg5 {[%clk 0:02:43]} 13. Bxg5 {[%clk 0:02:38.4]} 13... Qxg5 {[%clk 0:02:40.9]}
14. f4 {[%clk 0:02:38.1]} 14... Qg6 {[%clk 0:02:35.8]} 15. Qf3 {[%clk
0:02:30.1]} 15... c5 {[%clk 0:02:27.7]} 16. dxc5 {[%clk 0:02:29.2]} 16... Nxc5
{[%clk 0:02:28.6]} 17. d4 {[%clk 0:02:28.8]} 17... Ne4 {[%clk 0:02:08.5]} 18. f5
{[%clk 0:02:22.3]} 18... Qxf5 {[%clk 0:01:59.1]} 19. Qxf5 {[%clk 0:02:08.8]}
19... exf5 {[%clk 0:02:00]} 20. Nxd5 {[%clk 0:02:04]} 20... g6 {[%clk
0:01:50.5]} 21. Nc3 {[%clk 0:01:48.9]} 21... Nxc3 {[%clk 0:01:44.3]} 22. bxc3
{[%clk 0:01:48.1]} 22... Rac8 {[%clk 0:01:44.1]} 23. Rac1 {[%clk 0:01:47.1]}
23... Rc4 {[%clk 0:01:42.6]} 24. Rfd1 {[%clk 0:01:44.9]} 24... Rfc8 {[%clk
0:01:28.1]} 25. Rd3 {[%clk 0:01:42.3]} 25... Kf8 {[%clk 0:01:24.1]} 26. d5
{[%clk 0:01:32.7]} 26... Re4 {[%clk 0:01:18.4]} 27. d6 {[%clk 0:01:07.6]} 27...
Rxe5 {[%clk 0:01:18.1]} 28. c4 {[%clk 0:01:00.3]} 28... b6 {[%clk 0:01:13]} 29.
Kf2 {[%clk 0:00:54.7]} 29... Rd8 {[%clk 0:01:10.4]} 30. Rd4 {[%clk 0:00:51.6]}
30... Ke8 {[%clk 0:01:00.1]} 31. Rc3 {[%clk 0:00:51.2]} 31... Kd7 {[%clk
0:00:49.3]} 32. Ra3 {[%clk 0:00:49.7]} 32... a5 {[%clk 0:00:42.3]} 33. Rb3
{[%clk 0:00:43.5]} 33... Kc6 {[%clk 0:00:42.8]} 34. Rbd3 {[%clk 0:00:44.1]}
34... Rd7 {[%clk 0:00:40.4]} 35. g4 {[%clk 0:00:20.5]} 35... fxg4 {[%clk
0:00:35.9]} 36. Kg3 {[%clk 0:00:20.7]} 36... f5 {[%clk 0:00:30.6]} 37. Rd5
{[%clk 0:00:18.9]} 37... Re6 {[%clk 0:00:29.2]} 38. Rb5 {[%clk 0:00:17.8]} 38...
Rexd6 {[%clk 0:00:27.3]} 39. Rdb3 {[%clk 0:00:18]} 39... Rd3+ {[%clk 0:00:27.3]}
40. Kf4 {[%clk 0:00:16.7]} 40... Rxb3 {[%clk 0:00:16]} 41. axb3 {[%clk
0:00:17.6]} 41... Re7 {[%clk 0:00:14.2]} 42. Rd5 {[%clk 0:00:14.4]} 42... Re4+
{[%clk 0:00:14.1]} 43. Kg3 {[%clk 0:00:11.9]} 43... Re3+ {[%clk 0:00:14.7]} 44.
Kh4 {[%clk 0:00:12.2]} 44... Rh3# {[%clk 0:00:13.3]} 0-1

[Event "Early-Titled-Tuesday-Blitz-August-29-2023"]
[Site "Chess.com"]
[Date "2023.08.29"]
[Round "4"]
[White "KrokerGuy"]
[Black "GalaxyRoman"]
[Result "1-0"]
[WhiteElo "2507"]
[BlackElo "2713"]
[TimeControl "180+1"]
[EndTime "8:39:28 PDT"]
[Termination "KrokerGuy won by checkmate"]

1. e4 {[%clk 0:03:00.9]} 1... e5 {[%clk 0:03:00]} 2. Nf3 {[%clk 0:03:01.4]} 2...
Nc6 {[%clk 0:03:00.4]} 3. d4 {[%clk 0:03:01.8]} 3... exd4 {[%clk 0:02:59.9]} 4.
Nxd4 {[%clk 0:03:02.7]} 4... Nf6 {[%clk 0:03:00.5]} 5. Nxc6 {[%clk 0:03:03.4]}
5... bxc6 {[%clk 0:03:01.2]} 6. e5 {[%clk 0:03:04.1]} 6... Qe7 {[%clk
0:03:00.8]} 7. Qe2 {[%clk 0:03:04.8]} 7... Nd5 {[%clk 0:03:01.1]} 8. c4 {[%clk
0:03:05.6]} 8... Ba6 {[%clk 0:03:01.1]} 9. b3 {[%clk 0:03:06.1]} 9... g6 {[%clk
0:03:00.9]} 10. f4 {[%clk 0:03:06.8]} 10... Bg7 {[%clk 0:03:01.1]} 11. Qf2
{[%clk 0:03:07.5]} 11... Nb6 {[%clk 0:02:56.9]} 12. Ba3 {[%clk 0:03:07.9]} 12...
d6 {[%clk 0:02:55.1]} 13. Nc3 {[%clk 0:03:08.4]} 13... f6 {[%clk 0:02:42.4]} 14.
c5 {[%clk 0:02:56.7]} 14... Bxf1 {[%clk 0:02:01.8]} 15. cxd6 {[%clk 0:02:19.7]}
15... cxd6 {[%clk 0:01:54.7]} 16. Bxd6 {[%clk 0:02:20.6]} 16... Qe6 {[%clk
0:01:54.2]} 17. Rxf1 {[%clk 0:00:59.5]} 17... fxe5 {[%clk 0:01:33.3]} 18. O-O-O
{[%clk 0:00:59.8]} 18... O-O-O {[%clk 0:01:25.8]} 19. Qc5 {[%clk 0:00:58.8]}
19... Kb7 {[%clk 0:01:07.2]} 20. Bxe5 {[%clk 0:00:59.3]} 20... Bxe5 {[%clk
0:00:29.4]} 21. fxe5 {[%clk 0:01:00.2]} 21... Rxd1+ {[%clk 0:00:15.7]} 22. Rxd1
{[%clk 0:01:01.1]} 22... Re8 {[%clk 0:00:15.7]} 23. Ne4 {[%clk 0:00:19.2]} 23...
Qxe5 {[%clk 0:00:14.9]} 24. Nd6+ {[%clk 0:00:19]} 24... Kb8 {[%clk 0:00:15.1]}
25. Qxc6 {[%clk 0:00:13.9]} 25... Re7 {[%clk 0:00:15.3]} 26. Nc4 {[%clk
0:00:05.3]} 26... Qf4+ {[%clk 0:00:13.8]} 27. Kb1 {[%clk 0:00:05.1]} 27... Qf5+
{[%clk 0:00:13.9]} 28. Ka1 {[%clk 0:00:03.4]} 28... Rc7 {[%clk 0:00:05.4]} 29.
Rd8+ {[%clk 0:00:04]} 29... Nc8 {[%clk 0:00:05.7]} 30. Qd6 {[%clk 0:00:01.9]}
30... Qf1+ {[%clk 0:00:05.1]} 31. Kb2 {[%clk 0:00:02.6]} 31... Qxg2+ {[%clk
0:00:03.5]} 32. Ka3 {[%clk 0:00:03.3]} 32... Qb7 {[%clk 0:00:03]} 33. Qd4 {[%clk
0:00:02]} 33... Qa6+ {[%clk 0:00:02.7]} 34. Kb2 {[%clk 0:00:02.6]} 34... Qc6
{[%clk 0:00:02.9]} 35. Nd6 {[%clk 0:00:02.4]} 35... Rd7 {[%clk 0:00:01.3]} 36.
Qb4+ {[%clk 0:00:02.3]} 36... Qb6 {[%clk 0:00:01.2]} 37. Rxc8# {[%clk
0:00:03.1]} 1-0

[Event "Early-Titled-Tuesday-Blitz-August-29-2023"]
[Site "Chess.com"]
[Date "2023.08.29"]
[Round "4"]
[White "Ramosha"]
[Black "jcibarra"]
[Result "0-1"]
[WhiteElo "2577"]
[BlackElo "2879"]
[TimeControl "180+1"]
[EndTime "8:39:29 PDT"]
[Termination "jcibarra won by resignation"]

1. e4 {[%clk 0:03:00.9]} 1... c5 {[%clk 0:02:58.4]} 2. Nf3 {[%clk 0:03:01]} 2...
e6 {[%clk 0:02:57.7]} 3. d3 {[%clk 0:03:01]} 3... Nc6 {[%clk 0:02:57.2]} 4. g3
{[%clk 0:03:00.6]} 4... g6 {[%clk 0:02:57.7]} 5. Bg2 {[%clk 0:03:00.7]} 5... Bg7
{[%clk 0:02:58.5]} 6. O-O {[%clk 0:03:00.2]} 6... d5 {[%clk 0:02:55]} 7. Qe2
{[%clk 0:02:58.5]} 7... Nf6 {[%clk 0:02:53.7]} 8. c3 {[%clk 0:02:57.8]} 8... O-O
{[%clk 0:02:53.1]} 9. e5 {[%clk 0:02:57.6]} 9... Nd7 {[%clk 0:02:51.7]} 10. d4
{[%clk 0:02:58]} 10... cxd4 {[%clk 0:02:49.4]} 11. cxd4 {[%clk 0:02:58.9]} 11...
b6 {[%clk 0:02:48.7]} 12. Rd1 {[%clk 0:02:58.7]} 12... a5 {[%clk 0:02:48.3]} 13.
Bf4 {[%clk 0:02:58.8]} 13... Ba6 {[%clk 0:02:48.6]} 14. Qe3 {[%clk 0:02:58.9]}
14... Nb4 {[%clk 0:02:48.7]} 15. Na3 {[%clk 0:02:59]} 15... Rc8 {[%clk 0:02:49]}
16. h4 {[%clk 0:02:58.8]} 16... Nc2 {[%clk 0:02:32.4]} 17. Nxc2 {[%clk
0:02:57.7]} 17... Rxc2 {[%clk 0:02:33.3]} 18. b3 {[%clk 0:02:51.7]} 18... Qa8
{[%clk 0:02:22.3]} 19. Rdc1 {[%clk 0:02:47.9]} 19... Re2 {[%clk 0:02:21]} 20.
Qc3 {[%clk 0:02:44.8]} 20... Rc8 {[%clk 0:02:19.5]} 21. Qxc8+ {[%clk 0:02:44.9]}
21... Bxc8 {[%clk 0:02:19.3]} 22. Rc7 {[%clk 0:02:45.5]} 22... Nf8 {[%clk
0:02:05.9]} 23. Bf1 {[%clk 0:02:42]} 23... Re4 {[%clk 0:01:45.6]} 24. Be3 {[%clk
0:02:38.4]} 24... Ba6 {[%clk 0:01:42.2]} 25. Bh3 {[%clk 0:02:29.7]} 25... f6
{[%clk 0:01:24.2]} 26. exf6 {[%clk 0:02:22.9]} 26... Bxf6 {[%clk 0:01:25.1]} 27.
Nd2 {[%clk 0:02:16.9]} 27... Bxd4 {[%clk 0:01:18.2]} 28. Nxe4 {[%clk 0:02:15.7]}
28... Bxa1 {[%clk 0:01:17]} 29. Ng5 {[%clk 0:02:13.1]} 29... Be5 {[%clk
0:01:13.1]} 30. Rc1 {[%clk 0:01:46.7]} 30... d4 {[%clk 0:01:12.7]} 31. Bd2
{[%clk 0:01:46.9]} 31... Qd5 {[%clk 0:00:42.2]} 32. Bg2 {[%clk 0:01:32.7]} 32...
Qd7 {[%clk 0:00:42.3]} 33. Ne4 {[%clk 0:01:25]} 33... Bb7 {[%clk 0:00:41.2]} 34.
Bg5 {[%clk 0:01:18.4]} 34... d3 {[%clk 0:00:33.8]} 35. Rd1 {[%clk 0:01:18.6]}
35... Qd4 {[%clk 0:00:31.5]} 36. Be3 {[%clk 0:01:17.7]} 36... Qd8 {[%clk
0:00:21.1]} 37. Bg5 {[%clk 0:01:14]} 37... Qd7 {[%clk 0:00:18.7]} 38. Kh2 {[%clk
0:01:06.2]} 38... h5 {[%clk 0:00:14.4]} 39. Be3 {[%clk 0:01:02.6]} 39... Nh7
{[%clk 0:00:13.1]} 40. f4 {[%clk 0:01:01]} 40... Nf6 {[%clk 0:00:08.9]} 41. fxe5
{[%clk 0:00:27.4]} 41... Ng4+ {[%clk 0:00:07.5]} 42. Kg1 {[%clk 0:00:24.6]}
42... Bxe4 {[%clk 0:00:08]} 43. Bxe4 {[%clk 0:00:24.3]} 43... Nxe3 {[%clk
0:00:08.6]} 44. Rxd3 {[%clk 0:00:24.7]} 44... Nd5 {[%clk 0:00:08.7]} 45. Bxg6
{[%clk 0:00:24.1]} 45... Qg7 {[%clk 0:00:08.8]} 46. Bxh5 {[%clk 0:00:22.9]}
46... Qxe5 {[%clk 0:00:09.4]} 47. Kg2 {[%clk 0:00:20.3]} 47... Qxh5 {[%clk
0:00:08.8]} 0-1

[Event "Early-Titled-Tuesday-Blitz-August-29-2023"]
[Site "Chess.com"]
[Date "2023.08.29"]
[Round "4"]
[White "RandomNoob04"]
[Black "masenik"]
[Result "1-0"]
[WhiteElo "2658"]
[BlackElo "2410"]
[TimeControl "180+1"]
[EndTime "8:39:29 PDT"]
[Termination "RandomNoob04 won by resignation"]

1. e4 {[%clk 0:03:00.9]} 1... c5 {[%clk 0:02:59.9]} 2. d4 {[%clk 0:03:01]} 2...
cxd4 {[%clk 0:02:59.8]} 3. c3 {[%clk 0:03:01.4]} 3... dxc3 {[%clk 0:03:00.7]} 4.
Nxc3 {[%clk 0:03:02.3]} 4... Nc6 {[%clk 0:03:00.8]} 5. Nf3 {[%clk 0:03:03.2]}
5... d6 {[%clk 0:03:01]} 6. Bc4 {[%clk 0:03:03.9]} 6... e6 {[%clk 0:03:01.7]} 7.
O-O {[%clk 0:03:03.6]} 7... Nf6 {[%clk 0:03:02.1]} 8. Bf4 {[%clk 0:03:04.2]}
8... Be7 {[%clk 0:02:59.7]} 9. Qe2 {[%clk 0:03:02.6]} 9... e5 {[%clk 0:02:59.6]}
10. Bg5 {[%clk 0:02:57.1]} 10... Bg4 {[%clk 0:02:58.3]} 11. Qe3 {[%clk
0:02:35.1]} 11... O-O {[%clk 0:02:50.3]} 12. h3 {[%clk 0:02:26.2]} 12... Bxf3
{[%clk 0:02:48.1]} 13. Qxf3 {[%clk 0:02:27.1]} 13... Nd4 {[%clk 0:02:46.4]} 14.
Qd3 {[%clk 0:02:24.6]} 14... a6 {[%clk 0:02:33.3]} 15. Be3 {[%clk 0:02:22]}
15... Ne6 {[%clk 0:02:27.6]} 16. Rfd1 {[%clk 0:02:18.8]} 16... b5 {[%clk
0:02:16.8]} 17. Bd5 {[%clk 0:02:16.7]} 17... Nxd5 {[%clk 0:02:05.8]} 18. Nxd5
{[%clk 0:02:17.6]} 18... Nc5 {[%clk 0:01:56]} 19. Bxc5 {[%clk 0:01:52.8]} 19...
dxc5 {[%clk 0:01:55.6]} 20. Qg3 {[%clk 0:01:53.7]} 20... Bd6 {[%clk 0:01:38.1]}
21. Rd3 {[%clk 0:01:42.2]} 21... f5 {[%clk 0:01:26.5]} 22. Rad1 {[%clk
0:01:24.4]} 22... fxe4 {[%clk 0:01:20.8]} 23. R3d2 {[%clk 0:01:24.2]} 23... Qa5
{[%clk 0:00:50.4]} 24. Nb6 {[%clk 0:00:54.5]} 24... Be7 {[%clk 0:00:45.8]} 25.
Nxa8 {[%clk 0:00:52.9]} 25... Rxa8 {[%clk 0:00:44.2]} 26. Qxe5 {[%clk
0:00:51.9]} 26... Re8 {[%clk 0:00:37.4]} 27. Rd7 {[%clk 0:00:49.9]} 27... Kf8
{[%clk 0:00:36]} 28. Qf5+ {[%clk 0:00:37.4]} 28... Kg8 {[%clk 0:00:35.1]} 29.
Qe6+ {[%clk 0:00:33.2]} 29... Kf8 {[%clk 0:00:34.6]} 30. R1d5 {[%clk 0:00:31.1]}
30... Qe1+ {[%clk 0:00:33.7]} 31. Kh2 {[%clk 0:00:31.7]} 31... g6 {[%clk
0:00:34.2]} 32. Re5 {[%clk 0:00:20.6]} 32... Qxf2 {[%clk 0:00:33.8]} 33. Rxe4
{[%clk 0:00:07.6]} 33... Qf7 {[%clk 0:00:24.2]} 34. Qxf7+ {[%clk 0:00:08]} 34...
Kxf7 {[%clk 0:00:25.1]} 35. Ra7 {[%clk 0:00:07.9]} 35... c4 {[%clk 0:00:22.9]}
36. g3 {[%clk 0:00:05.8]} 36... b4 {[%clk 0:00:20.9]} 37. Rxc4 {[%clk
0:00:05.2]} 37... Rd8 {[%clk 0:00:20.7]} 38. Rcc7 {[%clk 0:00:04.9]} 38... Rd2+
{[%clk 0:00:20.9]} 39. Kg1 {[%clk 0:00:05.5]} 39... Re2 {[%clk 0:00:21.8]} 40.
Kf1 {[%clk 0:00:06.1]} 40... Re3 {[%clk 0:00:21.5]} 41. Kf2 {[%clk 0:00:05.8]}
41... Re5 {[%clk 0:00:21.5]} 42. Rxa6 {[%clk 0:00:05.8]} 42... Kf8 {[%clk
0:00:21.3]} 43. Ra8+ {[%clk 0:00:05.9]} 43... Kf7 {[%clk 0:00:21.6]} 44. Raa7
{[%clk 0:00:06.8]} 44... Kf6 {[%clk 0:00:21.8]} 45. Rxe7 {[%clk 0:00:06.5]}
45... Rxe7 {[%clk 0:00:21.9]} 46. Rxe7 {[%clk 0:00:07.4]} 46... Kxe7 {[%clk
0:00:22.8]} 47. a3 {[%clk 0:00:07.7]} 47... Kd6 {[%clk 0:00:23.7]} 48. axb4
{[%clk 0:00:07.8]} 48... Kc6 {[%clk 0:00:24.5]} 49. Ke3 {[%clk 0:00:08.5]} 49...
Kb5 {[%clk 0:00:25.4]} 50. Kf4 {[%clk 0:00:09.2]} 50... Kxb4 {[%clk 0:00:26.3]}
51. Kg5 {[%clk 0:00:10.1]} 1-0